[Event "*** Titled Tuesday Blitz"]
[Site "Chess.com"]
[Date "2019.09.03"]
[Round "4"]
[White "Bladel"]
[Black "FairChess_on_YouTube"]
[Result "1-0"]
[WhiteElo "2621"]
[BlackElo "2970"]
[TimeControl "180+2"]
[EndTime "15:54:26 PDT"]
[Termination "Bladel won by resignation"]

1. e4 {[%clk 0:03:01.9]} 1... g6 {[%clk 0:03:01.9]} 2. d4 {[%clk 0:03:01.3]}
2... Bg7 {[%clk 0:03:03.4]} 3. Nc3 {[%clk 0:03:00.7]} 3... c6 {[%clk 0:03:03.7]}
4. Be2 {[%clk 0:02:59.4]} 4... d6 {[%clk 0:03:01.9]} 5. Be3 {[%clk 0:02:51]}
5... Qb6 {[%clk 0:02:59.3]} 6. a3 {[%clk 0:02:32]} 6... Nf6 {[%clk 0:02:58.5]}
7. g4 {[%clk 0:02:20.9]} 7... O-O {[%clk 0:02:54.5]} 8. g5 {[%clk 0:02:13.2]}
8... Ng4 {[%clk 0:02:49.5]} 9. Bd2 {[%clk 0:02:02.9]} 9... f5 {[%clk 0:02:24.3]}
10. gxf6 {[%clk 0:02:01.6]} 10... Nxf6 {[%clk 0:02:20.1]} 11. Be3 {[%clk
0:02:02.4]} 11... Ng4 {[%clk 0:02:16.2]} 12. Nf3 {[%clk 0:02:03.4]} 12... e5
{[%clk 0:02:01.6]} 13. h3 {[%clk 0:01:55.6]} 13... Nxe3 {[%clk 0:01:47.6]} 14.
fxe3 {[%clk 0:01:57.5]} 14... exd4 {[%clk 0:01:39.3]} 15. exd4 {[%clk
0:01:57.4]} 15... Rxf3 {[%clk 0:01:36.2]} 16. Bxf3 {[%clk 0:01:57.1]} 16... Qxb2
{[%clk 0:01:36.8]} 17. Ne2 {[%clk 0:01:55.4]} 17... Nd7 {[%clk 0:01:33.5]} 18.
O-O {[%clk 0:01:52.2]} 18... Qb6 {[%clk 0:01:32.1]} 19. c3 {[%clk 0:01:48.3]}
19... Nf6 {[%clk 0:01:29]} 20. Kh2 {[%clk 0:01:38.2]} 20... Qc7 {[%clk
0:01:26.6]} 21. Qb3+ {[%clk 0:01:35.7]} 21... Kh8 {[%clk 0:01:23.7]} 22. Ng3
{[%clk 0:01:34.2]} 22... Bd7 {[%clk 0:01:19.7]} 23. Rae1 {[%clk 0:01:23.8]}
23... Re8 {[%clk 0:01:17.9]} 24. Bg2 {[%clk 0:01:21.5]} 24... Be6 {[%clk
0:01:12.5]} 25. Qc2 {[%clk 0:01:19.5]} 25... Bc4 {[%clk 0:01:08.9]} 26. Rf2
{[%clk 0:01:16.5]} 26... c5 {[%clk 0:01:02.3]} 27. Bf1 {[%clk 0:01:13.7]} 27...
Bg8 {[%clk 0:00:57.7]} 28. Bg2 {[%clk 0:01:09.6]} 28... Nd7 {[%clk 0:00:51.7]}
29. Qd2 {[%clk 0:01:09.7]} 29... b5 {[%clk 0:00:49.6]} 30. e5 {[%clk 0:01:08.6]}
30... dxe5 {[%clk 0:00:47]} 31. d5 {[%clk 0:01:09.6]} 31... e4 {[%clk
0:00:44.9]} 32. d6 {[%clk 0:01:08.8]} 32... Qd8 {[%clk 0:00:35.3]} 33. Rxe4
{[%clk 0:01:06.4]} 33... Be5 {[%clk 0:00:32.5]} 34. Rfe2 {[%clk 0:01:02.2]}
34... Qf6 {[%clk 0:00:28.1]} 35. Kh1 {[%clk 0:00:58.3]} 35... Rf8 {[%clk
0:00:25]} 36. Rxe5 {[%clk 0:00:54.3]} 36... Nxe5 {[%clk 0:00:25.7]} 37. Ne4
{[%clk 0:00:54.9]} 37... Qg7 {[%clk 0:00:19.1]} 38. Nxc5 {[%clk 0:00:49.2]}
38... Nc4 {[%clk 0:00:20.2]} 39. Qd3 {[%clk 0:00:38.3]} 39... Qh6 {[%clk
0:00:16.8]} 40. d7 {[%clk 0:00:35.3]} 40... Qc1+ {[%clk 0:00:16.7]} 41. Kh2
{[%clk 0:00:36.5]} 41... Qf4+ {[%clk 0:00:18.2]} 42. Qg3 {[%clk 0:00:36.3]}
42... Qxg3+ {[%clk 0:00:18.5]} 43. Kxg3 {[%clk 0:00:37.3]} 43... Nd6 {[%clk
0:00:19.5]} 44. Ne6 {[%clk 0:00:33.7]} 44... Bxe6 {[%clk 0:00:11.6]} 45. Rxe6
{[%clk 0:00:35.6]} 45... Nf7 {[%clk 0:00:13.1]} 46. Re8 {[%clk 0:00:35.6]} 46...
Kg7 {[%clk 0:00:14.2]} 47. Kf4 {[%clk 0:00:29.5]} 47... g5+ {[%clk 0:00:12.6]}
48. Ke3 {[%clk 0:00:29]} 48... h5 {[%clk 0:00:13.3]} 49. Kd4 {[%clk 0:00:28.3]}
49... g4 {[%clk 0:00:11.8]} 50. hxg4 {[%clk 0:00:27.2]} 50... hxg4 {[%clk
0:00:13.7]} 51. Kc5 {[%clk 0:00:28.3]} 51... a5 {[%clk 0:00:15]} 52. Kxb5 {[%clk
0:00:22.7]} 52... Nd6+ {[%clk 0:00:15.2]} 53. Kc5 {[%clk 0:00:20.9]} 53... Rxe8
{[%clk 0:00:13.2]} 54. Kxd6 {[%clk 0:00:18.5]} 54... Rf8 {[%clk 0:00:05.5]} 55.
c4 {[%clk 0:00:19.2]} 55... g3 {[%clk 0:00:04.7]} 56. c5 {[%clk 0:00:17.8]}
56... Rf6+ {[%clk 0:00:05.8]} 57. Ke5 {[%clk 0:00:17.1]} 57... Rf8 {[%clk
0:00:03.7]} 58. c6 {[%clk 0:00:17.3]} 58... Kf7 {[%clk 0:00:05.3]} 59. c7 {[%clk
0:00:17.9]} 59... Ke7 {[%clk 0:00:06.9]} 60. c8=Q {[%clk 0:00:16.6]} 1-0

[Event "*** Titled Tuesday Blitz"]
[Site "Chess.com"]
[Date "2019.09.03"]
[Round "4"]
[White "Vuks91"]
[Black "MITerryble"]
[Result "1-0"]
[WhiteElo "2596"]
[BlackElo "2822"]
[TimeControl "180+2"]
[EndTime "15:54:31 PDT"]
[Termination "Vuks91 won by resignation"]

1. d4 {[%clk 0:03:01.3]} 1... Nf6 {[%clk 0:02:57.3]} 2. Nf3 {[%clk 0:03:01]}
2... e6 {[%clk 0:02:40.6]} 3. Bf4 {[%clk 0:03:01.7]} 3... b6 {[%clk 0:02:41.5]}
4. e3 {[%clk 0:03:02.3]} 4... Bb7 {[%clk 0:02:42.6]} 5. c4 {[%clk 0:03:03.8]}
5... Bb4+ {[%clk 0:02:43.1]} 6. Nfd2 {[%clk 0:03:05]} 6... O-O {[%clk
0:02:42.9]} 7. a3 {[%clk 0:03:06.1]} 7... Bd6 {[%clk 0:02:44.2]} 8. Bg3 {[%clk
0:03:04.4]} 8... Bxg3 {[%clk 0:02:44.9]} 9. hxg3 {[%clk 0:03:06.1]} 9... d6
{[%clk 0:02:46.8]} 10. Bd3 {[%clk 0:02:54.8]} 10... g6 {[%clk 0:02:37.3]} 11.
Nc3 {[%clk 0:02:50.1]} 11... e5 {[%clk 0:02:38.2]} 12. d5 {[%clk 0:02:41.9]}
12... Nbd7 {[%clk 0:02:39]} 13. g4 {[%clk 0:02:32.4]} 13... Kg7 {[%clk
0:02:28.4]} 14. g5 {[%clk 0:02:18.8]} 14... Ng8 {[%clk 0:02:29.6]} 15. Nde4
{[%clk 0:01:49]} 15... f5 {[%clk 0:02:30.5]} 16. gxf6+ {[%clk 0:01:48.6]} 16...
Ndxf6 {[%clk 0:02:31.9]} 17. Ng5 {[%clk 0:01:49.2]} 17... Bc8 {[%clk 0:02:33.4]}
18. Nxh7 {[%clk 0:01:29]} 18... Bg4 {[%clk 0:02:23.7]} 19. Ng5 {[%clk
0:01:13.2]} 19... Bxd1 {[%clk 0:02:11.5]} 20. Ne6+ {[%clk 0:01:13.1]} 20... Kf7
{[%clk 0:02:13.2]} 21. Nxd8+ {[%clk 0:01:14.6]} 21... Raxd8 {[%clk 0:02:15]} 22.
Rxd1 {[%clk 0:01:13.5]} 22... Kg7 {[%clk 0:02:12]} 23. f3 {[%clk 0:01:11.2]}
23... Nh6 {[%clk 0:02:08.7]} 24. Rh3 {[%clk 0:01:09.6]} 24... Nf7 {[%clk
0:02:06.1]} 25. Rg3 {[%clk 0:01:07.5]} 25... g5 {[%clk 0:02:06.9]} 26. Rh3
{[%clk 0:01:05.4]} 26... Rh8 {[%clk 0:02:07.7]} 27. Rxh8 {[%clk 0:01:03.5]}
27... Rxh8 {[%clk 0:02:09.6]} 28. Kf2 {[%clk 0:01:02.9]} 28... a6 {[%clk
0:02:09.6]} 29. Bf5 {[%clk 0:00:55.7]} 29... Rh4 {[%clk 0:02:07.6]} 30. b3
{[%clk 0:00:51.7]} 30... Rh8 {[%clk 0:01:59]} 31. Ne2 {[%clk 0:00:51.3]} 31...
g4 {[%clk 0:01:51.3]} 32. f4 {[%clk 0:00:42.5]} 32... Rh5 {[%clk 0:01:49.1]} 33.
Ng3 {[%clk 0:00:42.4]} 33... Rh8 {[%clk 0:01:43.8]} 34. Rh1 {[%clk 0:00:41.8]}
34... exf4 {[%clk 0:01:31.4]} 35. exf4 {[%clk 0:00:40.4]} 35... Re8 {[%clk
0:01:31.7]} 36. Nh5+ {[%clk 0:00:31.5]} 36... Nxh5 {[%clk 0:01:32.4]} 37. Rxh5
{[%clk 0:00:32.8]} 37... g3+ {[%clk 0:01:34.1]} 38. Kf3 {[%clk 0:00:29.1]} 38...
Re1 {[%clk 0:01:31.9]} 39. Rh3 {[%clk 0:00:26.1]} 39... Rf1+ {[%clk 0:01:20.5]}
40. Kxg3 {[%clk 0:00:22.4]} 40... b5 {[%clk 0:01:22]} 41. Be6 {[%clk 0:00:19.7]}
41... Nh8 {[%clk 0:01:17.8]} 42. f5 {[%clk 0:00:17.9]} 42... Nf7 {[%clk
0:01:11]} 43. Bxf7 {[%clk 0:00:18.1]} 43... Kxf7 {[%clk 0:01:12.9]} 44. Rh7+
{[%clk 0:00:18.6]} 44... Kf6 {[%clk 0:01:14.2]} 45. Rxc7 {[%clk 0:00:20.1]}
45... Rxf5 {[%clk 0:01:08.3]} 46. Rc6 {[%clk 0:00:19.2]} 46... Ke5 {[%clk
0:01:09.7]} 47. Rxa6 {[%clk 0:00:19.6]} 47... bxc4 {[%clk 0:01:09.3]} 48. bxc4
{[%clk 0:00:21.5]} 48... Rf1 {[%clk 0:01:08.1]} 49. a4 {[%clk 0:00:10]} 49...
Rc1 {[%clk 0:01:08.2]} 50. Rc6 {[%clk 0:00:10.6]} 50... Ra1 {[%clk 0:01:09.6]}
51. Kg4 {[%clk 0:00:12]} 51... Rxa4 {[%clk 0:01:10.5]} 52. Kg5 {[%clk
0:00:13.2]} 52... Ra8 {[%clk 0:01:10.8]} 53. g4 {[%clk 0:00:13.6]} 53... Rg8+
{[%clk 0:01:12.1]} 54. Kh5 {[%clk 0:00:13.7]} 54... Rh8+ {[%clk 0:01:13.5]} 55.
Kg6 {[%clk 0:00:13.4]} 55... Rg8+ {[%clk 0:01:15.4]} 56. Kh5 {[%clk 0:00:13.9]}
56... Rh8+ {[%clk 0:01:16.8]} 57. Kg5 {[%clk 0:00:15.1]} 57... Rg8+ {[%clk
0:01:18.7]} 58. Kh4 {[%clk 0:00:10.1]} 58... Kf4 {[%clk 0:01:20]} 59. Kh3 {[%clk
0:00:10.2]} 59... Rh8+ {[%clk 0:01:19.7]} 60. Kg2 {[%clk 0:00:10.9]} 60... Rd8
{[%clk 0:01:11.4]} 61. Kf2 {[%clk 0:00:11.3]} 61... Kxg4 {[%clk 0:01:11.7]} 62.
Ke3 {[%clk 0:00:12.7]} 62... Kf5 {[%clk 0:01:09.2]} 63. Kd4 {[%clk 0:00:13.6]}
63... Rd7 {[%clk 0:01:11.1]} 64. c5 {[%clk 0:00:11.5]} 64... dxc5+ {[%clk
0:01:12.1]} 65. Kxc5 {[%clk 0:00:13.4]} 65... Ra7 {[%clk 0:01:11.4]} 66. Re6
{[%clk 0:00:13.1]} 66... Ra1 {[%clk 0:01:12.5]} 67. Re2 {[%clk 0:00:11.9]} 67...
Ra5+ {[%clk 0:01:03]} 68. Kc6 {[%clk 0:00:11.6]} 68... Ra6+ {[%clk 0:01:04.2]}
69. Kc7 {[%clk 0:00:10.3]} 69... Ra7+ {[%clk 0:01:05.4]} 70. Kb6 {[%clk
0:00:10.8]} 70... Re7 {[%clk 0:00:43.7]} 71. Rxe7 {[%clk 0:00:10.9]} 1-0

[Event "*** Titled Tuesday Blitz"]
[Site "Chess.com"]
[Date "2019.09.03"]
[Round "4"]
[White "valeriocarnicelli"]
[Black "tbalabayev"]
[Result "1/2-1/2"]
[WhiteElo "2577"]
[BlackElo "2378"]
[TimeControl "180+2"]
[EndTime "15:54:43 PDT"]
[Termination "Game drawn by agreement"]

1. e4 {[%clk 0:03:00.2]} 1... c5 {[%clk 0:03:00.4]} 2. Nf3 {[%clk 0:03:01.3]}
2... Nc6 {[%clk 0:03:02]} 3. d4 {[%clk 0:03:02.6]} 3... cxd4 {[%clk 0:03:03.9]}
4. Nxd4 {[%clk 0:03:04.5]} 4... Nf6 {[%clk 0:03:05.2]} 5. Nc3 {[%clk 0:03:05.1]}
5... e5 {[%clk 0:03:06.8]} 6. Ndb5 {[%clk 0:03:06]} 6... d6 {[%clk 0:03:08]} 7.
Bg5 {[%clk 0:03:06.2]} 7... a6 {[%clk 0:03:09.2]} 8. Na3 {[%clk 0:03:07.2]} 8...
b5 {[%clk 0:03:11.1]} 9. Nd5 {[%clk 0:03:08.6]} 9... Be7 {[%clk 0:03:11.8]} 10.
Bxf6 {[%clk 0:03:10]} 10... Bxf6 {[%clk 0:03:13.7]} 11. c3 {[%clk 0:03:11.5]}
11... Bg5 {[%clk 0:03:14.5]} 12. Nc2 {[%clk 0:03:12.3]} 12... Ne7 {[%clk
0:03:16.1]} 13. Ncb4 {[%clk 0:03:11.2]} 13... O-O {[%clk 0:03:15.8]} 14. a4
{[%clk 0:03:08.3]} 14... bxa4 {[%clk 0:03:16.6]} 15. Rxa4 {[%clk 0:03:09]} 15...
a5 {[%clk 0:03:18.2]} 16. Nxe7+ {[%clk 0:03:06.9]} 16... Qxe7 {[%clk 0:03:19.3]}
17. Nd5 {[%clk 0:03:07.3]} 17... Qb7 {[%clk 0:03:20.6]} 18. Ra2 {[%clk
0:03:06.8]} 18... Be6 {[%clk 0:02:58.4]} 19. Bc4 {[%clk 0:03:01.2]} 19... Rfc8
{[%clk 0:02:56]} 20. b3 {[%clk 0:03:01.6]} 20... a4 {[%clk 0:02:56.8]} 21. O-O
{[%clk 0:02:42.8]} 21... axb3 {[%clk 0:02:50.8]} 22. Rxa8 {[%clk 0:02:43.6]}
22... Rxa8 {[%clk 0:02:39.4]} 23. Bxb3 {[%clk 0:02:41.1]} 23... Rc8 {[%clk
0:02:32.9]} 24. c4 {[%clk 0:02:39.5]} 24... Rb8 {[%clk 0:02:18]} 25. Bc2 {[%clk
0:02:38]} 25... Bd8 {[%clk 0:02:15.6]} 26. Qd3 {[%clk 0:02:37]} 26... Bb6 {[%clk
0:02:11.7]} 27. Rb1 {[%clk 0:02:32.3]} 27... Bxd5 {[%clk 0:01:55.1]} 28. exd5
{[%clk 0:02:33.4]} 28... g6 {[%clk 0:01:56.6]} 29. c5 {[%clk 0:02:20.2]} 29...
dxc5 {[%clk 0:01:53.2]} 30. d6 {[%clk 0:02:21.4]} 30... Qc6 {[%clk 0:01:41.6]}
31. Rd1 {[%clk 0:01:35.6]} 31... c4 {[%clk 0:01:32.2]} 32. Qh3 {[%clk
0:01:35.6]} 32... Rd8 {[%clk 0:01:17]} 33. d7 {[%clk 0:01:25.2]} 33... Bd4
{[%clk 0:01:16.9]} 34. Qa3 {[%clk 0:01:12.6]} 34... Qxd7 {[%clk 0:01:11.6]} 35.
Qa5 {[%clk 0:01:12.8]} 35... Qd6 {[%clk 0:00:57.6]} 36. Qb5 {[%clk 0:01:09.5]}
36... Rc8 {[%clk 0:00:56]} 37. Qb7 {[%clk 0:01:06.2]} 37... Rc7 {[%clk
0:00:55.9]} 38. Qb8+ {[%clk 0:01:06.9]} 38... Kg7 {[%clk 0:00:56.6]} 39. Rb1
{[%clk 0:01:07]} 39... Qc5 {[%clk 0:00:49.5]} 40. Rf1 {[%clk 0:01:03.5]} 40...
h5 {[%clk 0:00:48.8]} 41. Be4 {[%clk 0:01:03.2]} 41... Qe7 {[%clk 0:00:45.4]}
42. Rb1 {[%clk 0:01:00.3]} 42... c3 {[%clk 0:00:43.8]} 43. Bc2 {[%clk
0:00:58.2]} 43... Ba7 {[%clk 0:00:40.5]} 44. Qa8 {[%clk 0:00:57.4]} 44... Qc5
{[%clk 0:00:41.2]} 45. Qf3 {[%clk 0:00:57.2]} 45... Rc6 {[%clk 0:00:37.9]} 46.
Rf1 {[%clk 0:00:40.4]} 46... Rf6 {[%clk 0:00:34.9]} 47. Qe2 {[%clk 0:00:41.6]}
47... Qd4 {[%clk 0:00:35.9]} 48. g3 {[%clk 0:00:39.4]} 48... h4 {[%clk
0:00:34.4]} 49. Kg2 {[%clk 0:00:39.5]} 49... Bc5 {[%clk 0:00:30.8]} 50. f3
{[%clk 0:00:36.2]} 50... Rd6 {[%clk 0:00:26.3]} 51. Rd1 {[%clk 0:00:34.3]} 51...
Qd2 {[%clk 0:00:20.2]} 52. Rxd2 {[%clk 0:00:28.3]} 52... Rxd2 {[%clk 0:00:20.7]}
53. Kf1 {[%clk 0:00:29.4]} 53... Rxe2 {[%clk 0:00:20.6]} 54. Kxe2 {[%clk
0:00:31.3]} 54... hxg3 {[%clk 0:00:21.4]} 55. hxg3 {[%clk 0:00:32.5]} 55... Bd4
{[%clk 0:00:22.7]} 56. g4 {[%clk 0:00:32.4]} 56... Kf6 {[%clk 0:00:23.1]} 57.
Kd3 {[%clk 0:00:30.1]} 57... Kg5 {[%clk 0:00:24.5]} 58. Ke4 {[%clk 0:00:29.3]}
58... f5+ {[%clk 0:00:25.3]} 59. gxf5 {[%clk 0:00:30.6]} 59... gxf5+ {[%clk
0:00:27.2]} 60. Kd3 {[%clk 0:00:31.8]} 60... Kf4 {[%clk 0:00:28.2]} 61. Ke2
{[%clk 0:00:33]} 61... Bc5 {[%clk 0:00:27.4]} 62. Bb3 {[%clk 0:00:32]} 62... Be3
{[%clk 0:00:26.6]} 63. Bc2 {[%clk 0:00:32.7]} 63... Bd2 {[%clk 0:00:28]} 64. Bb3
{[%clk 0:00:33.3]} 64... Kg3 {[%clk 0:00:28.2]} 65. Bc2 {[%clk 0:00:33.8]} 65...
Kf4 {[%clk 0:00:29.3]} 66. Bb3 {[%clk 0:00:35.2]} 66... Kg5 {[%clk 0:00:30.9]}
67. Bc2 {[%clk 0:00:36.5]} 67... Kf6 {[%clk 0:00:32.3]} 68. Bb3 {[%clk 0:00:38]}
68... Ke7 {[%clk 0:00:33.8]} 69. Kd3 {[%clk 0:00:39.3]} 69... Kd6 {[%clk
0:00:34.4]} 70. Kc4 {[%clk 0:00:38.2]} 70... Be1 {[%clk 0:00:35]} 71. Bc2 {[%clk
0:00:39.1]} 71... Bd2 {[%clk 0:00:35.1]} 72. Bxf5 {[%clk 0:00:39.2]} 72... Be1
{[%clk 0:00:35.4]} 73. Bc2 {[%clk 0:00:40.2]} 73... Bd2 {[%clk 0:00:35.6]} 74.
Bd3 {[%clk 0:00:41.3]} 74... Be1 {[%clk 0:00:35.2]} 75. Bc2 {[%clk 0:00:42.6]}
75... Bd2 {[%clk 0:00:36.3]} 76. Bd3 {[%clk 0:00:44.2]} 76... Be1 {[%clk
0:00:36.5]} 1/2-1/2

[Event "*** Titled Tuesday Blitz"]
[Site "Chess.com"]
[Date "2019.09.03"]
[Round "4"]
[White "Chigorinetz"]
[Black "StephenDedalus83"]
[Result "0-1"]
[WhiteElo "2578"]
[BlackElo "2827"]
[TimeControl "180+2"]
[EndTime "15:54:52 PDT"]
[Termination "StephenDedalus83 won by resignation"]

1. e4 {[%clk 0:02:58.8]} 1... g6 {[%clk 0:02:57.5]} 2. Nc3 {[%clk 0:02:59]} 2...
Bg7 {[%clk 0:02:58.9]} 3. h4 {[%clk 0:03:00.4]} 3... h5 {[%clk 0:02:47.7]} 4.
Bc4 {[%clk 0:03:00.7]} 4... e6 {[%clk 0:02:44.6]} 5. Bb3 {[%clk 0:03:01.4]} 5...
Ne7 {[%clk 0:02:44.9]} 6. d4 {[%clk 0:03:00.8]} 6... d5 {[%clk 0:02:45.7]} 7.
Bg5 {[%clk 0:03:01.3]} 7... dxe4 {[%clk 0:02:28.9]} 8. Nxe4 {[%clk 0:02:59.8]}
8... Qxd4 {[%clk 0:02:29.6]} 9. Qxd4 {[%clk 0:02:59.2]} 9... Bxd4 {[%clk
0:02:30]} 10. O-O-O {[%clk 0:03:00.7]} 10... Nbc6 {[%clk 0:02:30.5]} 11. Ba4
{[%clk 0:02:52.4]} 11... Bg7 {[%clk 0:02:12.2]} 12. Nf6+ {[%clk 0:02:52.2]}
12... Kf8 {[%clk 0:02:02.3]} 13. Nf3 {[%clk 0:02:52.2]} 13... a6 {[%clk
0:01:59]} 14. Rd3 {[%clk 0:02:40.7]} 14... b5 {[%clk 0:01:58.4]} 15. Rhd1 {[%clk
0:02:37.5]} 15... Bb7 {[%clk 0:01:46.3]} 16. Bb3 {[%clk 0:02:33.2]} 16... Bh6
{[%clk 0:01:34.6]} 17. Rd7 {[%clk 0:02:31.5]} 17... Rc8 {[%clk 0:01:34.5]} 18.
a4 {[%clk 0:02:16.2]} 18... Bxg5+ {[%clk 0:01:33.9]} 19. Nxg5 {[%clk 0:01:53.1]}
19... Ne5 {[%clk 0:01:33.5]} 20. Rd8+ {[%clk 0:01:43.7]} 20... Kg7 {[%clk
0:01:30.8]} 21. Rxh8 {[%clk 0:01:38.2]} 21... Rxh8 {[%clk 0:01:31]} 22. f4
{[%clk 0:01:40.1]} 22... N5c6 {[%clk 0:01:22.7]} 23. Nfe4 {[%clk 0:01:37.3]}
23... Rd8 {[%clk 0:01:18.8]} 24. Nc5 {[%clk 0:01:32.8]} 24... Bc8 {[%clk
0:01:19.5]} 25. Rxd8 {[%clk 0:01:25.6]} 25... Nxd8 {[%clk 0:01:19.8]} 26. Kd2
{[%clk 0:01:24.2]} 26... Nd5 {[%clk 0:01:13.7]} 27. g3 {[%clk 0:01:21.5]} 27...
c6 {[%clk 0:01:14.5]} 28. Nge4 {[%clk 0:01:19.7]} 28... Nb7 {[%clk 0:01:07.6]}
29. Nxa6 {[%clk 0:01:13.2]} 29... Kf8 {[%clk 0:00:54.1]} 30. axb5 {[%clk
0:01:07.4]} 30... cxb5 {[%clk 0:00:54.6]} 31. Bxd5 {[%clk 0:01:08.8]} 31... exd5
{[%clk 0:00:55.1]} 32. Nec5 {[%clk 0:01:06.2]} 32... Nd6 {[%clk 0:00:53.9]} 33.
Nb4 {[%clk 0:01:03.1]} 33... Nf5 {[%clk 0:00:54.3]} 34. Nxd5 {[%clk 0:00:59.1]}
34... Nxg3 {[%clk 0:00:55]} 35. Ne3 {[%clk 0:00:58.4]} 35... Nf5 {[%clk
0:00:54.5]} 36. Nxf5 {[%clk 0:00:58.4]} 36... Bxf5 {[%clk 0:00:56.4]} 37. b3
{[%clk 0:00:54.4]} 37... Ke7 {[%clk 0:00:53]} 38. c4 {[%clk 0:00:51.4]} 38...
bxc4 {[%clk 0:00:53.3]} 39. bxc4 {[%clk 0:00:52.1]} 39... Kd6 {[%clk 0:00:53.1]}
40. Nb3 {[%clk 0:00:52.2]} 40... f6 {[%clk 0:00:50.7]} 41. Ke3 {[%clk
0:00:48.1]} 41... Be6 {[%clk 0:00:47.9]} 42. Kd4 {[%clk 0:00:47.4]} 42... Bf7
{[%clk 0:00:48.5]} 43. Nd2 {[%clk 0:00:47.8]} 43... Ke6 {[%clk 0:00:48.9]} 44.
Ne4 {[%clk 0:00:47.8]} 44... Be8 {[%clk 0:00:48.1]} 45. Ng3 {[%clk 0:00:45.9]}
45... Bc6 {[%clk 0:00:46.3]} 46. f5+ {[%clk 0:00:46.4]} 46... Kf7 {[%clk
0:00:45.4]} 47. Kc5 {[%clk 0:00:42.8]} 47... Bf3 {[%clk 0:00:45.3]} 48. Kd6
{[%clk 0:00:43.3]} 48... g5 {[%clk 0:00:45.6]} 49. c5 {[%clk 0:00:41.7]} 49...
gxh4 {[%clk 0:00:46]} 50. Nf1 {[%clk 0:00:37.8]} 50... Kg7 {[%clk 0:00:46.7]}
51. c6 {[%clk 0:00:37.4]} 51... Kh6 {[%clk 0:00:47.7]} 52. c7 {[%clk 0:00:35.9]}
52... Bb7 {[%clk 0:00:48.5]} 53. Nh2 {[%clk 0:00:19.9]} 53... Kg5 {[%clk
0:00:43.1]} 54. Nf3+ {[%clk 0:00:21.8]} 54... Kg4 {[%clk 0:00:44]} 55. Ne5+
{[%clk 0:00:20]} 55... Kxf5 {[%clk 0:00:43.4]} 56. Nf3 {[%clk 0:00:18.9]} 56...
h3 {[%clk 0:00:42.9]} 57. Nh2 {[%clk 0:00:19.5]} 57... Kf4 {[%clk 0:00:43.5]}
58. Kd7 {[%clk 0:00:19.8]} 58... Kg3 {[%clk 0:00:43]} 59. Nf1+ {[%clk
0:00:21.7]} 59... Kf2 {[%clk 0:00:43.5]} 60. Nd2 {[%clk 0:00:18.5]} 60... h2
{[%clk 0:00:43.4]} 61. Ne4+ {[%clk 0:00:20.4]} 61... Kg2 {[%clk 0:00:43.8]} 62.
Nd6 {[%clk 0:00:20.3]} 62... Ba6 {[%clk 0:00:44.4]} 63. Kc6 {[%clk 0:00:18.8]}
63... h1=Q {[%clk 0:00:44]} 64. Kb6 {[%clk 0:00:20.7]} 64... Kf2 {[%clk
0:00:42.1]} 65. Kxa6 {[%clk 0:00:16.1]} 65... Qc6+ {[%clk 0:00:42.4]} 0-1